bitfinex-derivatives/quotes_SOLF0:USTF0_20251125
["timestamp","ask_amount","ask_price","bid_price","bid_amount"]
[1764037937274,2.93545983,137.26,137.24,25.04]
[1764037937769,0.05545983,137.26,137.24,25.04]
[1764037938665,0.05545983,137.26,137.23,6.60953185]
[1764037939069,0.05545983,137.26,137.24,25.04]
[1764037939274,2.93545983,137.26,137.24,25.04]
[1764037939477,0.05545983,137.26,137.24,31.6]
[1764037940065,2.93545983,137.26,137.25,25.04]
[1764037940260,8.46774256,137.26,137.25,25.04]
[1764037941479,5.58774256,137.26,137.25,25.04]
[1764037942478,0.05545983,137.26,137.25,25.04]
[1764037942977,5.5901793,137.26,137.25,25.04]
[1764037943369,0.05545983,137.26,137.25,25.04]
[1764037943563,0.05545983,137.26,137.23,0.04913185]
[1764037943768,0.05545983,137.26,137.24,25.04]
[1764037944879,2.93545983,137.26,137.23,0.04913185]
[1764037945075,8.09431042,137.25,137.21,25.04]
[1764037945283,2.88,137.28,137.21,27.65540403]
[1764037945475,10.60772446,137.27,137.21,27.65540403]
[1764037945675,2.88,137.28,137.21,27.65540403]
[1764037945976,2.93107598,137.26,137.21,27.65540403]
[1764037946181,2.93107598,137.26,137.19,2.61540403]
[1764037946378,2.88,137.24,137.2,25.04]
[1764037947184,2.88,137.24,137.17,14.55]
[1764037947375,2.92663104,137.22,137.18,25.04]
[1764037948380,2.92663104,137.22,137.18,31.6029]
[1764037948580,0.04663104,137.22,137.18,25.04]
[1764037948784,0.04663104,137.22,137.19,2.61540403]
[1764037948987,0.04663104,137.22,137.18,25.04]
[1764037949189,0.04663104,137.22,137.19,2.61540403]
[1764037950285,0.04663104,137.22,137.19,9.17770403]
[1764037950485,0.04663104,137.22,137.19,6.5623]
[1764037950685,0.04663104,137.22,137.19,9.17770403]
[1764037950884,0.04663104,137.22,137.21,2.61540403]
[1764037951088,10.603353,137.27,137.21,2.61540403]
[1764037951292,2.88,137.28,137.21,2.61540403]
[1764037951886,2.88,137.28,137.19,102.0807]
[1764037952091,0.05521124,137.25,137.22,0.05348575]
[1764037952300,0.05521124,137.25,137.23,25.04]
[1764037954088,0.05521124,137.25,137.23,27.65540403]
[1764037955196,0.05521124,137.25,137.23,34.21590403]
[1764037956087,0.05521124,137.25,137.23,77.21590403]
[1764037956488,0.05521124,137.25,137.23,34.21590403]
[1764037956791,2.88,137.31,137.25,6.5592]
[1764037956993,9.57477257,137.34,137.27,2.61540403]
[1764037957295,13.47420572,137.33,137.28,31.598]
[1764037957487,2.88,137.33,137.28,25.04]
[1764037957893,0.04928265,137.32,137.29,0.0523073]
[1764037958995,0.04928265,137.32,137.29,9.22531133]
[1764037959195,0.04928265,137.32,137.29,2.66771133]
[1764037959389,0.04928265,137.32,137.3,6.5571]
[1764037960596,2.92928265,137.32,137.29,0.0523073]
[1764037960899,2.92928265,137.32,137.3,25.04]
[1764037961098,0.04928265,137.32,137.3,25.04]
[1764037962090,2.92928265,137.32,137.31,25.04]
[1764037964999,0.04928265,137.32,137.31,25.04]
[1764037965193,0.04928265,137.32,137.29,0.0523073]
[1764037965406,0.04928265,137.32,137.3,25.04]
[1764037966707,2.92928265,137.32,137.3,25.04]
[1764037967909,0.04928265,137.32,137.3,25.04]
[1764037968413,2.97928265,137.32,137.29,25.0923073]
[1764037968908,0.04928265,137.32,137.29,25.0923073]
[1764037969808,0.04928265,137.32,137.29,27.70771133]
[1764037970409,0.04928265,137.32,137.3,6.5571]
[1764037970809,0.04928265,137.32,137.31,2.61540403]
[1764037972605,13.48419158,137.38,137.33,6.5558]
[1764037972809,2.93,137.4,137.34,25.04]
[1764037973000,2.93,137.4,137.35,2.61540403]
[1764037973207,2.93,137.4,137.35,9.17020403]
[1764037973808,0.04594768,137.39,137.36,0.0510282]
[1764037975106,2.97594768,137.39,137.36,0.0510282]
[1764037978715,0.04594768,137.39,137.36,6.6053282]
[1764037979423,0.04594768,137.39,137.37,6.5538]
[1764037980813,3.00594768,137.39,137.36,0.0510282]
[1764037981118,3.00594768,137.39,137.36,25.0710282]
[1764037982311,0.04594768,137.39,137.36,25.0710282]
[1764037984022,0.04594768,137.39,137.36,31.6252282]
[1764037986316,0.04594768,137.39,137.37,25.02]
[1764037987325,3.00594768,137.39,137.38,25.02]
[1764037987912,0.04594768,137.39,137.38,25.02]
[1764037988423,3.00594768,137.39,137.36,25.0710282]
[1764037990822,0.04594768,137.39,137.37,6.5538]
[1764037993025,2.96,137.46,137.38,2.61540403]
[1764037993230,2.96,137.46,137.4,9.16780403]
[1764037993433,2.96,137.46,137.41,25.02]
[1764037993633,2.96,137.46,137.41,31.5718]
[1764037994331,0.05511013,137.45,137.42,9.21986577]
[1764037994534,3.01511013,137.45,137.42,0.05306174]
[1764037995228,0.05511013,137.45,137.44,2.61540403]
[1764037996031,0.05511013,137.45,137.43,6.5509]
[1764037997018,0.05511013,137.45,137.44,2.61540403]
[1764037997321,6.69477257,137.54,137.45,101.8908]
[1764037997322,3.13,137.52,137.45,101.8908]
[1764037997523,5.16698609,137.55,137.47,2.61540403]
[1764037997724,8.49191008,137.54,137.48,6.5485]
[1764037998025,3.13,137.54,137.48,6.5485]
[1764037998229,0.05601002,137.52,137.5,0.05466022]
[1764037999030,0.05601002,137.52,137.51,25.02]
[1764038003833,8.47647313,137.6,137.51,126.8649]
[1764038004027,8.47654595,137.6,137.51,126.8649]
[1764038004842,0.04770908,137.57,137.54,0.05558417]
[1764038005033,0.04770908,137.57,137.55,25.0]
[1764038005229,3.17770908,137.57,137.54,0.05558417]
[1764038007144,9.72230908,137.57,137.54,0.05558417]
[1764038007438,3.13,137.56,137.54,0.05558417]
[1764038007738,3.13,137.55,137.54,0.05558417]
[1764038016133,3.13,137.53,137.5,25.0]
[1764038016529,3.13,137.53,137.45,6.5497]
[1764038016740,3.13,137.52,137.48,24.98]
[1764038017134,3.13,137.5,137.49,0.04851172]
[1764038018155,6.59608777,137.51,137.49,0.04851172]
[1764038018156,3.17868777,137.51,137.49,0.04851172]
[1764038018346,0.04868777,137.51,137.49,0.04851172]
[1764038020144,3.17868777,137.51,137.49,0.04851172]
[1764038021950,0.04868777,137.51,137.49,0.04851172]
[1764038022950,0.04868777,137.51,137.49,6.59661172]
[1764038023544,0.04868777,137.51,137.49,0.04851172]
[1764038023944,0.04868777,137.51,137.49,25.02851172]
[1764038024453,0.04868777,137.51,137.49,0.04851172]
[1764038024850,0.04868777,137.51,137.49,25.02851172]
[1764038025849,0.04868777,137.51,137.49,0.04851172]
[1764038026043,0.04868777,137.51,137.49,25.02851172]
[1764038026352,3.17868777,137.51,137.49,25.02851172]
[1764038030553,3.17868777,137.51,137.49,0.04851172]
[1764038031657,9.72598777,137.51,137.49,0.04851172]
[1764038031959,2.92,137.5,137.49,0.04851172]
[1764038037255,9.4482,137.49,137.41,101.9163]
[1764038037456,2.9,137.48,137.43,6.551]
[1764038038265,2.95454867,137.47,137.44,0.05106699]
[1764038041383,2.9,137.46,137.44,0.05106699]
[1764038042984,0.05454867,137.47,137.44,0.05106699]
[1764038043668,2.9,137.46,137.44,0.05106699]
[1764038046066,0.05454867,137.47,137.44,0.05106699]
[1764038046276,2.9,137.51,137.44,0.05106699]
[1764038046477,2.9,137.51,137.44,43.05106699]
[1764038047283,2.9,137.48,137.45,25.0]
[1764038047583,2.9,137.48,137.45,25.05021723]
[1764038047977,2.9,137.48,137.45,0.05021723]
[1764038048168,2.9,137.48,137.45,25.05021723]
[1764038051385,2.9,137.48,137.45,0.05021723]
[1764038051587,2.9,137.48,137.45,25.05021723]
[1764038052282,2.9,137.48,137.45,0.05021723]
[1764038052689,2.9,137.46,137.45,0.05021723]
[1764038077104,2.9,137.46,137.45,0.00021723]
[1764038077302,2.9,137.46,137.41,25.0]
[1764038077303,3.14,137.45,137.41,25.0]
[1764038078205,0.05249934,137.44,137.42,0.04667754]
[1764038078405,3.19249934,137.44,137.42,0.04667754]
[1764038079710,0.05249934,137.44,137.42,6.59807754]
[1764038084410,0.05249934,137.44,137.42,8.68499632]
[1764038084916,3.14,137.51,137.46,6.5495]
[1764038085109,6.73004853,137.52,137.46,25.0]
[1764038085110,3.14,137.49,137.46,25.0]
[1764038085511,5.410087,137.48,137.42,43.0]
[1764038085710,3.14,137.47,137.43,25.0]
[1764038086012,0.04632026,137.46,137.44,0.04912943]
[1764038086212,0.04632026,137.46,137.44,6.59962943]
[1764038087413,0.04632026,137.46,137.44,8.68654821]
[1764038087916,0.04632026,137.46,137.44,6.59962943]
[1764038089903,3.10632026,137.46,137.44,0.04912943]
[1764038092108,9.65602026,137.46,137.44,0.04912943]
[1764038092298,3.06,137.45,137.41,24.98]
[1764038092505,3.06,137.45,137.39,31.5327]
[1764038092506,3.06,137.44,137.39,31.5327]
[1764038093415,3.06,137.42,137.4,0.04739035]
[1764038100005,9.6117,137.42,137.4,0.04739035]
[1764038100207,3.11,137.41,137.4,0.04739035]
[1764038100916,3.11,137.4,137.29,18.05301798]
[1764038101116,3.11,137.39,137.33,2.08691878]
[1764038101709,3.11,137.39,137.3,21.97015017]
[1764038101922,3.11,137.35,137.33,0.0552023]
[1764038102217,3.16081565,137.35,137.33,0.04961849]
[1764038105121,0.05081565,137.35,137.33,2.13653727]
[1764038105316,0.05081565,137.35,137.33,104.11593727]
[1764038106023,0.05081565,137.35,137.33,110.67143727]
[1764038106416,0.05081565,137.35,137.33,8.69203727]
[1764038109925,0.05081565,137.35,137.33,110.67093727]
[1764038110331,0.05081565,137.35,137.33,8.69203727]
[1764038113120,0.05081565,137.35,137.34,25.0]
[1764038114327,0.05081565,137.35,137.33,8.69203727]
[1764038114728,3.16081565,137.35,137.34,25.0]
[1764038114928,3.16081565,137.35,137.33,8.69203727]
[1764038115130,3.16081565,137.35,137.34,25.0]
[1764038115927,0.05081565,137.35,137.34,25.0]
[1764038118136,2.93081565,137.35,137.34,25.0]
[1764038119239,0.05081565,137.35,137.34,25.0]
[1764038121533,0.05081565,137.35,137.33,0.04961849]
[1764038121534,2.93081565,137.35,137.33,0.04961849]
[1764038128037,2.93081565,137.35,137.28,6.5578]
[1764038128436,2.93081565,137.35,137.27,25.0]
[1764038128645,2.88,137.32,137.27,31.5586]
[1764038128843,2.88,137.32,137.27,6.5586]
[1764038129043,2.88,137.3,137.28,0.05420097]
[1764038138856,2.92703686,137.31,137.28,6.61220097]
[1764038140963,0.04703686,137.31,137.29,6.5575]
[1764038141158,0.04703686,137.31,137.3,25.0]
[1764038146370,0.04703686,137.31,137.29,6.5575]
[1764038146577,0.04703686,137.31,137.3,25.0]
[1764038148569,0.04703686,137.31,137.29,6.5575]
[1764038148875,0.04703686,137.31,137.3,25.0]
[1764038149676,0.04703686,137.31,137.29,6.5575]
[1764038149868,0.04703686,137.31,137.3,25.0]
[1764038152570,0.04703686,137.31,137.29,6.5575]
[1764038152775,3.16703686,137.31,137.22,102.0584]
[1764038152977,3.12,137.31,137.23,25.0]
[1764038153171,3.12,137.31,137.21,3.26558375]
[1764038153379,3.12,137.31,137.24,25.0]
[1764038153771,0.0551574,137.29,137.26,0.05579611]
[1764038153972,3.12,137.28,137.26,0.05579611]
[1764038159175,9.6783,137.28,137.26,0.05579611]
[1764038159378,2.98,137.27,137.26,0.05579611]
[1764038164888,0.0551574,137.29,137.26,0.05579611]
[1764038165692,0.0551574,137.29,137.27,6.5585]
[1764038166492,3.0351574,137.29,137.27,6.5585]
[1764038168480,0.0551574,137.29,137.27,6.5585]
[1764038168882,0.0551574,137.29,137.27,9.82408375]
[1764038169089,2.98,137.37,137.3,6.5572]
[1764038169385,2.98,137.35,137.3,6.5572]
[1764038169587,2.98,137.35,137.31,6.5566]
[1764038169887,2.98,137.37,137.31,25.0]
[1764038170089,3.03218088,137.34,137.32,0.04639659]
[1764038170391,3.02700755,137.34,137.32,0.04639659]
[1764038171785,0.04700755,137.34,137.32,0.04639659]
[1764038173690,3.02700755,137.34,137.32,0.04639659]
[1764038174883,3.02700755,137.34,137.28,25.0]
[1764038175087,2.98,137.34,137.24,105.31018375]
[1764038175285,2.98,137.33,137.26,6.5589]
[1764038175891,3.03339345,137.31,137.28,0.05229874]
[1764038189506,3.03339345,137.31,137.28,6.61039874]
[1764038189903,0.05339345,137.31,137.28,0.05229874]
[1764038190206,3.14339345,137.31,137.29,6.5575]
[1764038190402,0.05339345,137.31,137.29,6.5575]
[1764038193899,0.05339345,137.31,137.3,24.98]
[1764038195709,3.09,137.33,137.31,6.5568]
[1764038196710,3.14100621,137.33,137.31,6.5568]
[1764038198001,0.05100621,137.33,137.31,6.5568]
[1764038198403,3.09,137.37,137.32,2.09121622]
[1764038199404,3.14406469,137.36,137.34,6.5553]
[1764038199603,0.05406469,137.36,137.34,31.5353]
[1764038199909,3.09,137.43,137.38,6.5534]
[1764038200100,8.48385385,137.42,137.38,31.5334]
[1764038200304,3.09,137.42,137.38,31.5334]
[1764038200904,3.14449366,137.41,137.39,0.046458]
[1764038203499,3.14449366,137.41,137.39,6.599258]
[1764038205216,0.05449366,137.41,137.39,6.599258]
[1764038207718,0.05449366,137.41,137.4,2.09121622]
[1764038210427,3.0,137.46,137.4,2.09121622]
[1764038210716,3.0,137.46,137.42,2.09121622]
[1764038210918,3.0,137.46,137.43,24.96]
[1764038211122,3.0,137.48,137.44,2.09121622]
[1764038211509,3.0541622,137.47,137.45,0.04791071]
[1764038213819,3.0541622,137.47,137.43,24.96]
[1764038214118,2.09121622,137.46,137.38,2.09121622]
[1764038214325,3.0,137.45,137.4,24.96]
[1764038214518,3.0,137.45,137.4,31.5123]
[1764038214918,3.0,137.43,137.41,0.04670683]
[1764038215322,0.05171285,137.44,137.41,0.04670683]
[1764038217018,3.03171285,137.44,137.41,0.04670683]
[1764038217214,3.03171285,137.44,137.41,25.00670683]
[1764038217729,3.03171285,137.44,137.41,0.04670683]
[1764038221222,3.03171285,137.44,137.41,6.59860683]
[1764038222028,3.03171285,137.44,137.42,6.5514]
[1764038224721,0.05171285,137.44,137.42,8.64261622]
[1764038227323,2.98,137.51,137.45,6.5496]
[1764038227523,2.98,137.51,137.46,24.96]
[1764038228321,0.05167037,137.5,137.47,6.59854214]
[1764038228534,3.03167037,137.5,137.47,6.59854214]
[1764038232139,0.05167037,137.5,137.48,6.5485]
[1764038232737,3.03167037,137.5,137.47,0.04984214]
[1764038232924,2.98,137.49,137.44,28.06]
[1764038233528,2.98,137.49,137.43,6.5509]
[1764038233728,2.98,137.49,137.43,31.5109]
[1764038233924,3.02717991,137.47,137.45,0.04891026]
[1764038237236,3.02717991,137.47,137.4,21.40174671]
[1764038237433,3.02,137.43,137.36,2.09121622]
[1764038237632,3.02,137.43,137.37,24.94]
[1764038238438,3.06619731,137.41,137.39,0.04892717]
[1764038241435,0.04619731,137.41,137.39,3.18892717]
[1764038241640,0.04619731,137.41,137.4,5.23121622]
[1764038242545,0.04619731,137.41,137.4,11.78371622]
[1764038246544,0.04619731,137.41,137.4,9.6925]
[1764038248152,3.06619731,137.41,137.39,0.04892717]
[1764038252038,0.04619731,137.41,137.4,3.14]
[1764038253044,3.06619731,137.41,137.39,9.74182717]
[1764038253246,3.06619731,137.41,137.39,31.56182717]
[1764038253443,3.06619731,137.41,137.39,0.04892717]
[1764038253752,0.04619731,137.41,137.39,3.18892717]
[1764038254243,0.04619731,137.41,137.39,9.74172717]
[1764038254751,3.06619731,137.41,137.39,6.60172717]
[1764038255052,0.04619731,137.41,137.39,9.74172717]
[1764038255742,3.06619731,137.41,137.39,9.74172717]
[1764038257651,3.06619731,137.41,137.39,6.60172717]
[1764038259754,3.06619731,137.41,137.39,0.04892717]
[1764038261255,3.02,137.39,137.31,105.1313]
[1764038261459,3.02,137.39,137.32,24.96]
[1764038261760,105.18432262,137.41,137.32,24.96]
[1764038261761,3.02,137.38,137.32,28.1]
[1764038262254,0.05117234,137.36,137.34,0.04875481]
[1764038262456,3.07117234,137.36,137.34,0.04875481]
[1764038272670,3.07117234,137.36,137.34,3.21875481]
[1764038273762,3.07117234,137.36,137.34,0.04875481]
[1764038276974,3.07117234,137.36,137.34,3.21875481]
[1764038277570,3.07117234,137.36,137.34,0.04875481]
[1764038279775,9.62567234,137.36,137.34,0.04875481]
[1764038279968,2.88,137.35,137.34,0.04875481]
[1764038282769,0.05117234,137.36,137.34,3.21875481]
[1764038284177,2.93117234,137.36,137.34,3.21875481]
[1764038285681,0.05117234,137.36,137.34,9.77405481]
[1764038285879,0.05117234,137.36,137.35,3.17]
[1764038287178,2.93117234,137.36,137.34,3.21875481]
[1764038287778,2.93117234,137.36,137.34,0.04875481]
[1764038288178,2.93117234,137.36,137.34,3.21875481]
[1764038291788,0.05117234,137.36,137.34,9.77405481]
[1764038291989,0.05117234,137.36,137.35,3.17]
[1764038295688,2.93117234,137.36,137.34,0.04875481]
[1764038297089,9.48557234,137.36,137.34,0.04875481]
[1764038297396,3.18,137.35,137.34,0.04875481]
[1764038298793,3.18,137.31,137.26,3.05]
[1764038299194,3.18,137.31,137.27,3.05]
[1764038299399,3.18,137.33,137.27,3.05]
[1764038299795,0.04877229,137.31,137.29,3.09998962]
[1764038302196,3.22877229,137.31,137.29,3.09998962]
[1764038304498,0.04877229,137.31,137.29,3.09998962]
[1764038305290,0.04877229,137.31,137.3,3.05]
[1764038306094,3.18,137.36,137.32,3.05]
[1764038306400,3.18,137.39,137.32,3.05]
[1764038307102,3.22781505,137.37,137.34,3.10434104]
[1764038307399,3.22781505,137.37,137.34,0.05434104]
[1764038308603,3.22781505,137.37,137.34,3.10434104]
[1764038310397,3.22781505,137.37,137.34,0.05434104]
[1764038310707,3.18,137.35,137.34,0.05434104]
[1764038310896,3.18,137.33,137.29,24.96]
[1764038311498,3.18,137.33,137.27,36.6579242]
[1764038312203,0.05069936,137.31,137.29,0.05313097]
[1764038313610,0.05069936,137.31,137.29,3.10313097]
[1764038314504,3.23069936,137.31,137.29,0.05313097]
[1764038317504,0.05069936,137.31,137.3,5.1394242]
[1764038318603,9.7331,137.39,137.31,3.05]
[1764038318808,3.18,137.37,137.34,3.05]
[1764038319210,3.18,137.4,137.34,3.05]
[1764038319410,3.18,137.38,137.3,3.05]
[1764038319712,3.18,137.36,137.3,30.0994242]
[1764038319915,0.05015648,137.34,137.32,0.04979924]
[1764038320412,3.23015648,137.34,137.32,0.04979924]
[1764038324414,0.05015648,137.34,137.32,3.09979924]
[1764038324708,3.23015648,137.34,137.32,0.04979924]
[1764038326314,3.23015648,137.34,137.32,3.09979924]
[1764038326510,0.05015648,137.34,137.32,8.69522344]
[1764038326710,3.18,137.4,137.33,3.05]
[1764038326916,2.91,137.38,137.34,5.2094242]
[1764038327115,2.91,137.38,137.34,3.12]
[1764038327316,2.91,137.38,137.32,2.0894242]
[1764038327615,2.95831047,137.36,137.34,0.04652085]
[1764038327805,2.96067461,137.36,137.34,0.05334399]
[1764038332113,2.96067461,137.36,137.29,24.96]
[1764038332114,2.91,137.34,137.29,24.96]
[1764038332315,2.91,137.34,137.29,28.08]
[1764038332816,2.91,137.34,137.29,34.6376]
[1764038333118,2.95799694,137.33,137.3,0.05539232]
[1764038333618,2.95799694,137.33,137.3,3.17539232]
[1764038334117,0.04799694,137.33,137.31,3.12]
[1764038334710,0.04799694,137.33,137.32,5.2094242]
[1764038338216,2.88,137.41,137.35,2.89]
[1764038338415,2.88,137.39,137.36,2.89]
[1764038339116,2.88,137.39,137.36,9.49427096]
[1764038339321,0.05099646,137.39,137.36,2.94007096]
[1764038339617,2.93099646,137.39,137.36,2.94007096]
[1764038339820,2.93099646,137.39,137.37,6.5538]
[1764038340009,0.05099646,137.39,137.37,9.4438]
[1764038340206,2.93099646,137.39,137.37,9.4438]
[1764038340715,2.93099646,137.39,137.37,6.5538]
[1764038342018,2.93099646,137.39,137.36,0.05007096]
[1764038342412,2.88,137.37,137.36,0.05007096]
[1764038343823,2.88,137.36,137.32,6.5561]
[1764038344027,2.88,137.36,137.3,31.5169]
[1764038344224,2.88,137.35,137.3,24.96]
[1764038344423,2.88,137.34,137.3,24.96]
[1764038344926,2.88,137.32,137.31,0.0501704]
[1764038348428,0.04911435,137.33,137.32,2.89]
[1764038349426,2.92911435,137.33,137.31,6.6067704]
[1764038350922,0.04911435,137.33,137.32,2.89]
[1764038353931,0.04911435,137.33,137.31,9.4967704]
[1764038355531,0.04911435,137.33,137.32,2.89]
[1764038372044,0.04911435,137.33,137.32,9.4463]
[1764038372743,0.04911435,137.33,137.32,34.4063]
[1764038374733,13.26212866,137.41,137.33,3.1]
[1764038375045,8.4159479,137.4,137.36,3.1]
[1764038375244,3.06,137.4,137.37,28.06]
[1764038375440,3.06,137.4,137.38,3.1]
[1764038375830,3.06,137.4,137.38,9.70912159]
[1764038375831,3.11043975,137.4,137.38,9.70912159]
[1764038376750,0.05043975,137.4,137.38,9.70912159]
[1764038379549,0.05043975,137.4,137.39,3.1]
[1764038390257,3.08043975,137.4,137.38,28.09572159]
[1764038390557,0.05043975,137.4,137.39,3.1]
[1764038400659,0.05043975,137.4,137.39,3.07]
[1764038405866,5.34340236,137.45,137.42,3.07]
[1764038406070,2.96,137.46,137.42,3.07]
[1764038406264,5.34312185,137.45,137.42,3.07]
[1764038406570,9.509,137.48,137.42,3.07]
[1764038406767,2.96,137.46,137.42,3.07]
[1764038406966,0.05530946,137.45,137.43,3.12502058]
[1764038407970,0.05530946,137.45,137.43,9.67592058]
[1764038408172,0.05530946,137.45,137.44,3.07]
[1764038408668,3.01530946,137.45,137.43,0.05502058]
[1764038409069,9.56540946,137.45,137.43,0.05502058]
[1764038409271,2.96,137.43,137.38,3.07]
[1764038409474,2.96,137.43,137.38,28.01]
[1764038409670,2.96,137.42,137.39,3.07]
[1764038410473,3.00871196,137.42,137.39,3.11840458]
[1764038417374,3.00871196,137.42,137.4,3.18]
[1764038417877,0.04871196,137.42,137.4,9.7324]
[1764038418078,2.98871196,137.42,137.39,3.22840458]
[1764038418273,2.94,137.4,137.39,0.04840458]
[1764038418477,8.29118398,137.4,137.39,0.04840458]
[1764038422883,0.04871196,137.42,137.39,3.22840458]
[1764038423077,5.35037261,137.41,137.39,3.22840458]
[1764038423275,0.04871196,137.42,137.4,3.18]
[1764038423782,0.04871196,137.42,137.4,9.7324]
[1764038423981,0.04871196,137.42,137.41,3.18]
[1764038424284,2.94,137.47,137.43,3.18]
[1764038424582,5.34489719,137.46,137.43,3.18]
[1764038424780,5.34489719,137.45,137.43,3.18]
[1764038424982,9.64972866,137.49,137.43,3.18]
[1764038425287,0.04964741,137.47,137.45,3.23500614]
[1764038425581,5.3456762,137.46,137.45,3.23500614]
[1764038426887,0.04964741,137.47,137.45,3.23500614]
[1764038427081,0.04964741,137.47,137.46,3.18]
[1764038428872,0.04964741,137.47,137.45,3.23500614]
[1764038429483,0.04964741,137.47,137.45,9.78480614]
[1764038429787,0.04964741,137.47,137.46,3.18]
[1764038438901,0.04964741,137.47,137.46,5.26566525]
[1764038439803,0.04964741,137.47,137.46,3.18]
[1764038441601,0.04964741,137.47,137.46,28.1]
[1764038442401,0.04964741,137.47,137.46,3.18]
[1764038442606,0.04964741,137.47,137.46,28.1]
[1764038445895,2.94,137.51,137.47,3.18]
[1764038446105,2.94,137.51,137.48,3.18]
[1764038446706,2.94,137.51,137.49,3.18]
[1764038447008,2.98901353,137.51,137.49,3.2303632]
[1764038447408,0.04901353,137.51,137.49,9.7783632]
[1764038455511,3.03901353,137.51,137.49,2.9903632]
[1764038455701,3.03901353,137.51,137.49,0.0503632]
[1764038460109,3.03901353,137.51,137.49,3.2303632]
[1764038460507,3.03901353,137.51,137.49,0.0503632]
[1764038467313,8.34843047,137.5,137.49,0.0503632]
[1764038468619,5.31843047,137.5,137.49,3.2303632]
[1764038469518,8.34843047,137.5,137.49,0.0503632]
[1764038471121,5.31843047,137.5,137.49,3.2303632]
[1764038471720,8.34843047,137.5,137.49,0.0503632]
[1764038472518,5.31843047,137.5,137.49,3.2303632]
[1764038474022,8.34843047,137.5,137.49,0.0503632]
[1764038475720,5.31843047,137.5,137.49,3.2303632]
[1764038476113,0.04901353,137.51,137.5,9.7277]
[1764038476422,5.36849137,137.51,137.5,9.7277]
[1764038477013,3.06,137.5,137.49,0.0503632]
[1764038477218,8.37947784,137.5,137.49,0.0503632]
[1764038485226,8.37947784,137.5,137.49,6.5985632]
[1764038486424,8.37947784,137.5,137.49,0.0503632]
[1764038486833,3.06,137.49,137.44,3.0]
[1764038487029,3.06,137.47,137.44,27.9]
[1764038487334,3.06,137.47,137.46,6.5493]
[1764038487635,8.36932627,137.47,137.46,6.5493]
[1764038489130,3.11580517,137.48,137.46,6.5493]
[1764038493442,0.05580517,137.48,137.47,3.0]
[1764038493642,8.42570419,137.48,137.46,9.5493]
[1764038493841,3.11580517,137.48,137.46,9.5493]
[1764038498451,0.05580517,137.48,137.47,3.0]
[1764038498746,5.36358831,137.48,137.47,3.0]
[1764038500052,0.05580517,137.48,137.47,3.0]
[1764038505554,0.05580517,137.48,137.46,6.5493]
[1764038505555,3.11580517,137.48,137.46,6.5493]
[1764038505754,0.05580517,137.48,137.47,27.9]
[1764038509154,3.22580517,137.48,137.47,24.9]
[1764038509355,8.51173404,137.48,137.46,24.9]
[1764038509662,3.22580517,137.48,137.46,24.9]
[1764038509960,3.22580517,137.48,137.46,27.78]
[1764038511061,3.22580517,137.48,137.46,34.3295]
[1764038512261,0.05580517,137.48,137.47,2.88]
[1764038512462,5.33974637,137.48,137.47,2.88]
[1764038513064,0.05580517,137.48,137.47,2.88]
[1764038515665,0.05580517,137.48,137.47,27.78]
[1764038521465,3.17,137.51,137.49,3.16]
[1764038521668,5.26739653,137.5,137.49,3.16]
[1764038523168,5.26739653,137.5,137.49,9.708]
[1764038524463,0.05372354,137.51,137.49,9.708]
[1764038525363,2.97372354,137.51,137.49,9.708]
[1764038525568,8.14179386,137.5,137.48,3.20633152]
[1764038525764,2.92,137.5,137.48,28.10633152]
[1764038527155,2.92,137.5,137.48,0.04633152]
[1764038527361,8.14126983,137.49,137.48,0.04633152]
[1764038532576,5.22126983,137.49,137.48,3.20633152]
[1764038533082,5.22126983,137.49,137.48,0.04633152]
[1764038533474,5.22126983,137.49,137.48,3.20633152]
[1764038533782,5.22126983,137.49,137.48,0.04633152]
[1764038534077,8.14126983,137.49,137.48,0.04633152]
[1764038534278,5.22126983,137.49,137.48,3.20633152]
[1764038536580,2.97372354,137.51,137.48,9.75463152]
[1764038536782,5.2176939,137.5,137.49,3.16]
[1764038544580,3.05372354,137.51,137.49,9.708]
[1764038548678,3.05372354,137.51,137.49,34.588]